bitfinex-derivatives/quotes_BTCF0:USTF0_20250211
["timestamp","ask_amount","ask_price","bid_price","bid_amount"]
[1739262287578,0.001,98213.0,98212.0,0.5944104]
[1739262287771,0.06704,98213.0,98212.0,0.3908]
[1739262287971,0.06804,98213.0,98212.0,0.5944104]
[1739262289182,0.06804,98213.0,98212.0,0.5964104]
[1739262292496,0.06704,98223.0,98222.0,0.2035896]
[1739262292684,0.68476,98245.0,98224.0,0.2035855]
[1739262292685,0.06719272,98225.0,98224.0,0.2035855]
[1739262293690,0.07673493,98225.0,98224.0,0.2035855]
[1739262294392,0.07773493,98225.0,98224.0,0.2035855]
[1739262295186,0.06819272,98225.0,98224.0,0.2035855]
[1739262296493,0.00115272,98225.0,98224.0,0.2035855]
[1739262298503,0.68476,98245.0,98223.0,0.0331]
[1739262298687,0.06704,98230.0,98229.0,0.2035751]
[1739262300001,0.07004,98230.0,98229.0,0.2035751]
[1739262300695,0.07928969,98230.0,98229.0,0.2035751]
[1739262301300,0.08328969,98230.0,98229.0,0.2035751]
[1739262303994,0.08328969,98230.0,98229.0,0.5643751]
[1739262304197,0.07404,98230.0,98229.0,0.5643751]
[1739262311099,0.007,98230.0,98229.0,0.5643751]
[1739262316808,0.007,98230.0,98229.0,0.96919015]
[1739262318293,0.067,98237.0,98236.0,0.2035606]
[1739262319507,0.081,98237.0,98236.0,0.2035606]
[1739262320705,0.014,98237.0,98236.0,0.2035606]
[1739262322603,0.014,98237.0,98236.0,0.7864606]
[1739262331313,0.014,98237.0,98236.0,0.96955063]
[1739262334016,0.014,98237.0,98236.0,0.7864606]
[1739262334715,0.014,98237.0,98236.0,0.5643606]
[1739262338020,0.014,98237.0,98236.0,0.3608]
[1739262342329,0.081,98237.0,98236.0,0.3608]
[1739262343526,0.081,98237.0,98236.0,0.29319718]
[1739262344931,0.121,98237.0,98236.0,0.29319718]
[1739262345829,0.121,98237.0,98225.0,0.18453003]
[1739262346124,0.05486899,98235.0,98225.0,0.18453003]
[1739262346331,0.0629,98234.0,98225.0,0.18453003]
[1739262346530,0.0629,98234.0,98226.0,0.2035806]
[1739262348822,0.0639,98234.0,98226.0,0.2035806]
[1739262349228,0.0639,98234.0,98224.0,0.3608]
[1739262350230,0.0629,98234.0,98224.0,0.3608]
[1739262350429,0.04,98233.0,98224.0,0.5643854]
[1739262351634,0.067,98232.0,98224.0,0.5643854]
[1739262353133,0.068,98232.0,98224.0,0.5643854]
[1739262353924,0.068,98232.0,98224.0,0.5653854]
[1739262354534,0.068,98232.0,98224.0,0.5643854]
[1739262354740,0.068,98232.0,98224.0,0.5653854]
[1739262354939,0.068,98232.0,98224.0,0.2045854]
[1739262355129,0.068,98232.0,98224.0,0.5653854]
[1739262355639,0.067,98231.0,98224.0,0.5653854]
[1739262355940,0.04,98230.0,98224.0,0.5653854]
[1739262356738,0.04,98230.0,98224.0,0.3618]
[1739262356932,0.04,98230.0,98226.0,0.2035812]
[1739262358540,0.042,98230.0,98226.0,0.2035812]
[1739262358842,0.002,98230.0,98226.0,0.2035812]
[1739262359031,0.001,98230.0,98226.0,0.2035812]
[1739262359232,0.002,98230.0,98227.0,0.2035775]
[1739262360345,0.003,98230.0,98227.0,0.2035775]
[1739262361734,0.004,98230.0,98227.0,0.2035775]
[1739262362948,0.004,98230.0,98224.0,0.3608]
[1739262363943,0.004,98230.0,98222.0,0.38811913]
[1739262364244,0.002,98230.0,98224.0,0.001]
[1739262364744,0.04,98229.0,98224.0,0.001]
[1739262366147,0.04,98229.0,98223.0,0.2035872]
[1739262366346,0.041,98229.0,98223.0,0.2035872]
[1739262367047,0.041,98229.0,98224.0,0.001]
[1739262367241,0.001,98229.0,98224.0,0.001]
[1739262367959,0.001,98229.0,98223.0,0.2055872]
[1739262368650,0.11877283,98231.0,98223.0,0.2055872]
[1739262369050,0.11877283,98231.0,98224.0,0.2035844]
[1739262370151,0.11877283,98231.0,98224.0,0.2045844]
[1739262370457,0.11977283,98231.0,98224.0,0.2045844]
[1739262372650,0.07977283,98231.0,98224.0,0.2045844]
[1739262373158,0.04,98230.0,98224.0,0.2045844]
[1739262373349,0.04,98230.0,98224.0,0.001]
[1739262373658,0.04,98230.0,98225.0,0.2035831]
[1739262375359,0.04,98230.0,98224.0,0.001]
[1739262376057,0.3608,98228.0,98220.0,0.00015272]
[1739262376262,0.3608,98228.0,98214.0,0.3608]
[1739262376263,0.2035868,98224.0,98214.0,0.35111227]
[1739262376462,0.235688,98223.0,98214.0,0.35111227]
[1739262377656,0.236688,98223.0,98214.0,0.35711227]
[1739262378554,0.236688,98223.0,98214.0,0.35911227]
[1739262379560,0.0331,98223.0,98214.0,0.35911227]
[1739262379763,0.2035943,98220.0,98214.0,0.35911227]
[1739262379959,0.031,98219.0,98214.0,0.35911227]
[1739262382159,0.031,98219.0,98214.0,0.35711227]
[1739262382361,0.031,98219.0,98214.0,0.35911227]
[1739262382560,0.032,98219.0,98214.0,0.35911227]
[1739262383463,0.04368937,98219.0,98214.0,0.35911227]
[1739262388566,0.067,98218.0,98214.0,0.35911227]
[1739262389271,0.4278,98218.0,98214.0,0.008]
[1739262389672,0.6313984,98218.0,98214.0,0.002]
[1739262389973,0.6323984,98218.0,98214.0,0.008]
[1739262390667,0.2036033,98216.0,98202.0,0.3608]
[1739262390866,0.05486899,98212.0,98202.0,0.3608]
[1739262391667,0.05486899,98212.0,98203.0,0.203628]
[1739262392665,0.05686899,98212.0,98203.0,0.203628]
[1739262392975,0.05686899,98212.0,98203.0,0.208628]
[1739262396171,0.06696,98211.0,98203.0,0.208628]
[1739262398076,0.06896,98211.0,98203.0,0.208628]
[1739262398577,0.06896,98211.0,98205.0,0.3608]
[1739262399577,0.06796,98211.0,98205.0,0.3608]
[1739262399881,0.06896,98211.0,98205.0,0.3608]
[1739262400066,0.06896,98211.0,98203.0,0.203628]
[1739262400269,0.06896,98211.0,98205.0,0.3608]
[1739262401074,0.06796,98211.0,98203.0,0.203628]
[1739262401380,0.06796,98211.0,98205.0,0.3608]
[1739262402167,0.06896,98211.0,98203.0,0.203628]
[1739262402576,0.06896,98211.0,98205.0,0.3608]
[1739262403479,0.06796,98211.0,98205.0,0.3608]
[1739262404080,0.06696,98211.0,98204.0,0.2036266]
[1739262404478,0.06696,98211.0,98205.0,0.3608]
[1739262405178,0.06796,98211.0,98205.0,0.3608]
[1739262405779,0.06796,98211.0,98205.0,0.5644245]
[1739262406573,0.06696,98210.0,98205.0,0.5644245]
[1739262408282,0.06796,98210.0,98205.0,0.5644245]
[1739262409786,0.04,98209.0,98205.0,0.5644245]
[1739262411277,0.041,98209.0,98205.0,0.3608]
[1739262411784,0.05235488,98209.0,98205.0,0.3608]
[1739262411981,0.01235488,98209.0,98205.0,0.3608]
[1739262414688,0.01235488,98209.0,98203.0,0.3608]
[1739262415887,0.01135488,98209.0,98201.0,0.0329]
[1739262416083,0.06696,98210.0,98203.0,0.3608]
[1739262416674,0.001,98209.0,98203.0,0.3608]
[1739262417376,0.07824844,98210.0,98203.0,0.3608]
[1739262417582,0.07924844,98210.0,98203.0,0.3608]
[1739262418281,0.001,98209.0,98203.0,0.3608]
[1739262419986,0.07924844,98210.0,98203.0,0.3608]
[1739262420696,0.07824844,98210.0,98203.0,0.3608]
[1739262420883,0.001,98209.0,98203.0,0.3608]
[1739262422086,0.07824844,98210.0,98203.0,0.3608]
[1739262422284,0.07924844,98210.0,98203.0,0.3608]
[1739262423180,0.07824844,98210.0,98203.0,0.3608]
[1739262423387,0.001,98209.0,98203.0,0.3608]
[1739262424089,0.07924844,98210.0,98203.0,0.3608]
[1739262425179,0.07824844,98210.0,98203.0,0.3608]
[1739262425382,0.001,98209.0,98203.0,0.3608]
[1739262427094,0.07924844,98210.0,98203.0,0.3608]
[1739262427890,0.001,98209.0,98203.0,0.3608]
[1739262428989,0.07924844,98210.0,98203.0,0.3608]
[1739262430488,0.001,98209.0,98203.0,0.3608]
[1739262431197,0.07824844,98210.0,98203.0,0.3608]
[1739262431388,0.07924844,98210.0,98203.0,0.3608]
[1739262432097,0.001,98209.0,98203.0,0.3608]
[1739262433399,0.001,98209.0,98203.0,0.5644285]
[1739262433594,0.07924844,98210.0,98203.0,0.5644285]
[1739262434299,0.07824844,98210.0,98203.0,0.5644285]
[1739262434496,0.001,98209.0,98203.0,0.5644285]
[1739262435195,0.07824844,98210.0,98203.0,0.5644285]
[1739262435399,0.07924844,98210.0,98203.0,0.5644285]
[1739262435802,0.07924844,98210.0,98203.0,0.2036285]
[1739262435998,0.07924844,98210.0,98203.0,0.5644285]
[1739262436800,0.001,98209.0,98203.0,0.5644285]
[1739262437500,0.07824844,98210.0,98203.0,0.5644285]
[1739262437702,0.07924844,98210.0,98203.0,0.5644285]
[1739262438005,0.07924844,98210.0,98203.0,0.3608]
[1739262438199,0.07924844,98210.0,98204.0,0.2036259]
[1739262438388,0.001,98209.0,98204.0,0.2036259]
[1739262439803,0.07824844,98210.0,98204.0,0.2036259]
[1739262440098,0.07924844,98210.0,98204.0,0.2036259]
[1739262440697,0.07824844,98210.0,98204.0,0.2036259]
[1739262442397,0.06696,98209.0,98208.0,0.2036181]
[1739262442595,0.71595272,98219.0,98210.0,0.2036143]
[1739262442791,0.72730897,98219.0,98211.0,0.3608]
[1739262442991,0.06696,98218.0,98211.0,0.3608]
[1739262444206,0.07096,98218.0,98211.0,0.3608]
[1739262445700,0.07296,98218.0,98211.0,0.3608]
[1739262446908,0.07296,98218.0,98210.0,0.5644143]
[1739262449205,0.07196,98218.0,98210.0,0.5644143]
[1739262449511,0.07196,98218.0,98211.0,0.2036112]
[1739262450500,0.06896,98218.0,98211.0,0.2036112]
[1739262450704,0.07296,98218.0,98211.0,0.2036112]
[1739262473724,0.07296,98218.0,98210.0,0.3608]
[1739262475226,0.07196,98218.0,98210.0,0.3608]
[1739262476136,0.07196,98218.0,98216.0,0.2036021]
[1739262476137,0.005,98218.0,98216.0,0.2036021]
[1739262476431,0.06692,98217.0,98210.0,0.5644129]
[1739262476625,0.06692,98217.0,98211.0,0.2036106]
[1739262476934,0.06692,98217.0,98213.0,0.203607]
[1739262477230,0.06692,98217.0,98214.0,0.2036053]
[1739262478027,0.06692,98217.0,98214.0,0.5644053]
[1739262478424,0.06692,98217.0,98214.0,0.3608]
[1739262478624,0.0638,98216.0,98214.0,0.3608]
[1739262479828,0.04,98215.0,98214.0,0.3608]
[1739262481248,0.04,98215.0,98203.0,0.2036273]
[1739262481430,0.05486899,98213.0,98203.0,0.2036273]
[1739262481729,0.05486899,98213.0,98202.0,0.58434]
[1739262481921,0.05486899,98213.0,98205.0,0.2036248]
[1739262483831,0.05586899,98213.0,98205.0,0.2036248]
[1739262484428,0.05586899,98213.0,98205.0,0.2046248]
[1739262485531,0.18195227,98210.0,98205.0,0.2046248]
[1739262486939,0.18295227,98210.0,98205.0,0.2046248]
[1739262488837,0.001,98210.0,98206.0,0.2036227]
[1739262489842,0.18195227,98211.0,98206.0,0.2036227]
[1739262490035,0.001,98210.0,98206.0,0.2036227]
[1739262490945,0.18195227,98211.0,98206.0,0.2036227]
[1739262491238,0.001,98210.0,98206.0,0.2036227]
[1739262492230,0.002,98211.0,98206.0,0.2036227]
[1739262492733,0.001,98210.0,98206.0,0.2036227]
[1739262493533,0.001,98210.0,98208.0,0.2036184]
[1739262493741,0.002,98211.0,98208.0,0.2036184]
[1739262493929,0.001,98210.0,98208.0,0.2036184]
[1739262494440,0.002,98210.0,98208.0,0.2036184]
[1739262494745,0.003,98210.0,98208.0,0.2036184]
[1739262495633,0.003,98210.0,98203.0,0.3608]
[1739262495833,0.003,98210.0,98206.0,0.2036227]
[1739262496236,0.002,98210.0,98206.0,0.2036227]
[1739262497146,0.001,98210.0,98206.0,0.2036227]
[1739262497845,0.001,98210.0,98207.0,0.2036204]
[1739262498047,0.002,98210.0,98207.0,0.2036204]
[1739262500036,0.001,98210.0,98207.0,0.2036204]
[1739262500247,0.003,98210.0,98207.0,0.2036204]
[1739262518457,0.003,98210.0,98208.0,0.2036185]
[1739262520254,0.004,98210.0,98208.0,0.2036185]
[1739262521371,0.06688,98209.0,98208.0,0.2036185]
[1739262522556,0.06888,98209.0,98208.0,0.2036185]
[1739262523357,0.07088,98209.0,98208.0,0.2036185]
[1739262524363,0.07088,98209.0,98203.0,0.564429]
[1739262524864,0.08182716,98209.0,98204.0,0.203625]
[1739262526364,0.07982716,98209.0,98204.0,0.203625]
[1739262526868,0.07782716,98209.0,98204.0,0.203625]
[1739262527567,0.07782716,98209.0,98204.0,0.204625]
[1739262533259,0.07782716,98209.0,98204.0,0.001]
[1739262533460,0.07782716,98209.0,98205.0,0.2036245]
[1739262534569,0.07782716,98209.0,98205.0,0.2046245]
[1739262534773,0.07882716,98209.0,98205.0,0.2046245]
[1739262535269,0.04,98208.0,98205.0,0.2046245]
[1739262536170,0.07882716,98209.0,98205.0,0.2046245]
[1739262536556,0.001,98208.0,98205.0,0.2046245]
[1739262537974,0.001,98208.0,98200.0,0.24679288]
[1739262538271,0.001,98208.0,98200.0,0.04315888]
[1739262539065,0.2036213,98207.0,98205.0,0.001]
[1739262539372,0.2036229,98206.0,98205.0,0.001]
[1739262539964,0.2036229,98206.0,98200.0,0.04615888]
[1739262540367,0.2036229,98206.0,98200.0,0.04515888]
[1739262540871,0.2036229,98206.0,98205.0,0.001]
[1739262542373,0.2046229,98206.0,98200.0,0.04415888]
[1739262542570,0.2056229,98206.0,98200.0,0.04415888]
[1739262543169,0.2046229,98206.0,98200.0,0.04315888]
[1739262543376,0.2036265,98205.0,98200.0,0.04315888]
[1739262543667,0.0311,98205.0,98200.0,0.04415888]
[1739262544176,0.0311,98205.0,98200.0,0.04515888]
[1739262546070,0.234727,98205.0,98200.0,0.04515888]
[1739262546277,0.235727,98205.0,98200.0,0.04415888]
[1739262546467,0.235727,98205.0,98200.0,0.04515888]
[1739262548675,0.0321,98205.0,98200.0,0.04515888]
[1739262559385,0.235725,98205.0,98200.0,0.04515888]
[1739262560087,0.001,98205.0,98200.0,0.04515888]
[1739262563082,0.001,98205.0,98201.0,0.2036325]
[1739262563282,0.001,98205.0,98201.0,0.2650325]
[1739262564187,0.001,98205.0,98201.0,0.0624]
[1739262565196,0.06684,98204.0,98201.0,0.0624]
[1739262566492,0.06784,98204.0,98201.0,0.0624]
[1739262573892,0.06784,98204.0,98201.0,0.0324]
[1739262578205,0.001,98204.0,98201.0,0.0324]
[1739262578400,0.06684,98203.0,98201.0,0.0324]
[1739262579490,0.06684,98203.0,98201.0,0.0314]
[1739262579697,0.06784,98203.0,98201.0,0.0324]
[1739262580099,0.06784,98203.0,98201.0,0.001]
[1739262586807,0.03,98202.0,98201.0,0.001]
[1739262587804,0.031,98202.0,98201.0,0.001]
[1739262592917,0.001,98202.0,98201.0,0.001]
[1739262593122,0.06784,98202.0,98201.0,0.001]
[1739262599235,0.06784,98202.0,98201.0,0.3618]
[1739262606035,0.14264983,98202.0,98201.0,0.3618]
[1739262606233,0.14264983,98202.0,98201.0,0.001]
[1739262611146,0.07580983,98202.0,98201.0,0.001]
[1739262611443,0.14264983,98202.0,98201.0,0.001]
[1739262615038,0.14264983,98202.0,98201.0,0.5654332]
[1739262615239,0.06784,98202.0,98201.0,0.5654332]
[1739262623046,0.14264858,98202.0,98201.0,0.5654332]
[1739262625550,0.07580858,98202.0,98201.0,0.5654332]
[1739262625857,0.07580858,98202.0,98201.0,0.5959332]
[1739262626054,0.07580858,98202.0,98201.0,0.6271332]
[1739262628750,0.07580858,98202.0,98201.0,0.8492332]
[1739262629758,0.07580858,98202.0,98201.0,0.85989055]
[1739262630062,0.001,98202.0,98201.0,0.85989055]
[1739262631154,0.001,98202.0,98201.0,0.85989055]
[1739262632059,0.0668,98212.0,98201.0,0.65625735]
[1739262632254,0.0668,98212.0,98211.0,0.5644125]
[1739262632854,0.68488,98218.0,98211.0,0.3608]
[1739262633055,0.68488,98218.0,98217.0,0.2036001]
[1739262633253,0.75168,98218.0,98217.0,0.2036001]
[1739262635063,0.75668,98218.0,98217.0,0.2036001]
[1739262635861,0.76468,98218.0,98217.0,0.2036001]
[1739262636266,0.76468,98218.0,98217.0,0.5644001]
[1739262636458,0.77542778,98218.0,98217.0,0.5644001]
[1739262636765,0.85022452,98218.0,98217.0,0.5644001]
[1739262637766,0.16534452,98218.0,98217.0,0.5644001]
[1739262645670,0.09054778,98218.0,98217.0,0.5644001]
[1739262646275,0.09054778,98218.0,98217.0,0.2036001]
[1739262646474,0.09054778,98218.0,98217.0,0.5644001]
[1739262646866,0.09054778,98218.0,98217.0,0.2036001]
[1739262647168,0.09054778,98218.0,98217.0,0.5644001]
[1739262647766,0.09054778,98218.0,98217.0,0.2036001]
[1739262647967,0.09054778,98218.0,98217.0,0.5644001]
[1739262651975,0.02374778,98218.0,98217.0,0.5644001]
[1739262652172,0.27445589,98224.0,98217.0,0.5644001]
[1739262652173,0.27445589,98224.0,98223.0,0.2035876]
[1739262653378,0.01212613,98224.0,98223.0,0.2035876]
[1739262653771,0.02412613,98224.0,98223.0,0.2045876]
[1739262654079,0.02412613,98224.0,98223.0,0.5653876]
[1739262654379,0.02612613,98224.0,98223.0,0.5653876]
[1739262656676,0.10091515,98224.0,98223.0,0.5653876]
[1739262658685,0.10091515,98224.0,98223.0,0.57587776]
[1739262660188,0.02612613,98224.0,98223.0,0.57587776]
[1739262663981,0.02612613,98224.0,98223.0,0.5653876]
[1739262669879,0.09288613,98224.0,98216.0,0.2036016]
[1739262670082,0.09288613,98224.0,98217.0,0.2035991]
[1739262670583,0.09288613,98224.0,98218.0,0.2035976]
[1739262670989,0.08788613,98224.0,98218.0,0.2035976]
[1739262671685,0.08088613,98224.0,98218.0,0.2035976]
[1739262671883,0.08888613,98224.0,98218.0,0.2045976]
[1739262672482,0.08688613,98224.0,98218.0,0.2045976]
[1739262672679,0.08888613,98224.0,98218.0,0.2045976]
[1739262673080,0.08888613,98224.0,98218.0,0.001]
[1739262673279,0.08888613,98224.0,98220.0,0.203593]
[1739262673788,0.08088613,98224.0,98220.0,0.203593]
[1739262674084,0.08535865,98224.0,98220.0,0.203593]
[1739262674290,0.07480255,98223.0,98220.0,0.203593]
[1739262674690,0.07480255,98223.0,98220.0,0.204593]
[1739262675199,0.06676,98222.0,98221.0,0.2035904]
[1739262675988,0.08680255,98223.0,98221.0,0.2035904]
[1739262676190,0.06676,98222.0,98221.0,0.2035904]
[1739262677086,0.07576,98222.0,98221.0,0.2035904]
[1739262677586,0.15056255,98222.0,98221.0,0.2035904]
[1739262677792,0.07680255,98222.0,98221.0,0.2035904]
[1739262677987,0.15256255,98222.0,98221.0,0.2035904]
[1739262680890,0.07776,98222.0,98221.0,0.2035904]
[1739262687399,0.07376,98222.0,98221.0,0.2045904]
[1739262690598,0.07476,98222.0,98221.0,0.2045904]
[1739262691101,0.008,98222.0,98221.0,0.2045904]
[1739262691403,0.002,98222.0,98221.0,0.2035904]
[1739262691698,0.008,98222.0,98221.0,0.2045904]
[1739262698002,0.08279186,98222.0,98221.0,0.2045904]
[1739262700491,0.27292841,98232.0,98231.0,0.2035713]
[1739262700695,0.27292841,98232.0,98231.0,0.5643713]
[1739262701201,0.28627002,98232.0,98231.0,0.5643713]
[1739262701797,0.01334161,98232.0,98231.0,0.5653713]
[1739262701989,0.002,98232.0,98231.0,0.5653713]
[1739262703201,0.014,98232.0,98231.0,0.5663713]
[1739262704198,0.012,98232.0,98231.0,0.5663713]
[1739262704600,0.001,98232.0,98231.0,0.5713713]
[1739262705700,0.001,98232.0,98231.0,0.5703713]
[1739262705900,0.001,98232.0,98231.0,0.5713713]
[1739262708007,0.001,98232.0,98231.0,0.5703713]
[1739262708212,0.01388727,98236.0,98231.0,0.5653713]
[1739262708509,0.001,98232.0,98231.0,0.5713713]
[1739262709906,0.01388727,98236.0,98232.0,0.2035692]
[1739262711207,0.00115272,98233.0,98232.0,0.2085692]
[1739262716609,0.00115272,98233.0,98232.0,0.5693692]
[1739262719000,0.00015272,98233.0,98232.0,0.5683692]
[1739262721812,0.00015272,98233.0,98232.0,0.5643692]
[1739262722016,0.00115272,98233.0,98232.0,0.5683692]
[1739262723509,0.00015272,98233.0,98232.0,0.5643692]
[1739262723729,0.00115272,98233.0,98232.0,0.5683692]
[1739262725321,0.0324,98245.0,98240.0,0.2035527]
[1739262725618,0.01323901,98244.0,98242.0,0.2035486]
[1739262725815,0.68468,98246.0,98242.0,0.2035486]
[1739262726121,0.68468,98246.0,98240.0,0.3608]
[1739262726122,0.68468,98246.0,98245.0,0.2035424]
[1739262726913,0.6981965,98246.0,98245.0,0.2035424]
[1739262727120,0.68468,98246.0,98245.0,0.2035424]
[1739262728625,0.69068,98246.0,98245.0,0.2045424]
[1739262729215,0.7654474,98246.0,98245.0,0.2045424]
[1739262729710,0.7654474,98246.0,98245.0,0.21785916]
[1739262729913,0.0807674,98246.0,98245.0,0.21785916]
[1739262730524,0.0807674,98246.0,98245.0,0.57865916]
[1739262731225,0.27366939,98253.0,98245.0,0.37511676]
[1739262731425,0.27366939,98253.0,98252.0,0.2035279]
[1739262732527,0.27966939,98253.0,98252.0,0.2035279]
[1739262732728,0.0368,98253.0,98252.0,0.2035279]
[1739262734723,0.0308,98253.0,98252.0,0.2035279]
[1739262734930,0.0388,98253.0,98252.0,0.2045279]
[1739262746050,0.008,98253.0,98252.0,0.2045279]
[1739262746553,0.008,98253.0,98252.0,0.9261279]
[1739262751250,0.00015272,98255.0,98254.0,0.2035237]
[1739262752354,0.01115272,98255.0,98254.0,0.2045237]
[1739262752651,0.01115272,98255.0,98254.0,0.2055237]
[1739262753357,0.01115272,98255.0,98254.0,0.2045237]
[1739262753545,0.01115272,98255.0,98254.0,0.4266237]
[1739262754052,0.00815272,98255.0,98254.0,0.4266237]
[1739262757053,2e-08,98255.0,98254.0,0.4266237]
[1739262759759,4e-08,98264.0,98263.0,0.2035051]
[1739262759957,4e-08,98264.0,98263.0,0.5643051]
[1739262760860,4e-08,98264.0,98263.0,0.5653051]
[1739262761061,4e-08,98264.0,98263.0,0.5663051]
[1739262761857,4e-08,98264.0,98263.0,0.5653051]
[1739262762368,4e-08,98264.0,98263.0,0.7874051]
[1739262763459,4e-08,98264.0,98263.0,0.7864051]
[1739262765556,4e-08,98264.0,98263.0,0.79892512]
[1739262778474,0.0319,98278.0,98277.0,0.2034761]
[1739262778663,0.00152653,98298.0,98288.0,0.2034533]
[1739262778864,0.00152653,98298.0,98288.0,0.4116628]
[1739262779067,0.00152653,98298.0,98297.0,0.3608]
[1739262779266,0.00152653,98298.0,98297.0,0.5642347]
[1739262779776,0.00152653,98298.0,98297.0,0.2034347]
[1739262780874,0.00152653,98298.0,98297.0,0.2254347]
[1739262781269,0.04152653,98298.0,98297.0,0.2254347]
[1739262781772,0.10382653,98298.0,98297.0,0.2254347]
[1739262781972,0.09602653,98298.0,98297.0,0.2254347]
[1739262782373,0.17076024,98298.0,98297.0,0.2254347]
[1739262782879,0.16923371,98298.0,98297.0,0.2254347]
[1739262788781,0.30722923,98298.0,98297.0,0.2254347]
[1739262791391,0.30722923,98298.0,98297.0,0.022]
[1739262791575,0.37390923,98298.0,98297.0,0.022]
[1739262791776,0.16118,98298.0,98297.0,0.022]
[1739262795686,0.2359201,98298.0,98297.0,0.022]
[1739262802801,0.16118,98298.0,98297.0,0.022]
[1739262804794,0.12898,98298.0,98297.0,0.022]
[1739262805505,0.0623,98298.0,98297.0,0.022]
[1739262805799,0.09848,98298.0,98297.0,0.022]
[1739262806401,0.06668,98298.0,98297.0,0.022]
[1739262809206,0.14141851,98298.0,98297.0,0.2254347]
[1739262812706,0.06668,98298.0,98297.0,0.2254347]
[1739262814411,0.01253884,98299.0,98298.0,0.2034326]
[1739262814607,0.06668,98299.0,98298.0,0.2034326]
[1739262815813,0.06668,98299.0,98298.0,0.2184326]
[1739262816007,0.06668,98299.0,98298.0,0.2254326]
[1739262817309,0.0124608,98300.0,98298.0,0.2254326]
[1739262817614,0.06668,98299.0,98298.0,0.2254326]
[1739262819512,0.07473642,98299.0,98298.0,0.2254326]
[1739262819707,0.14141642,98299.0,98298.0,0.2184326]
[1739262819908,0.14141642,98299.0,98298.0,0.2194326]
[1739262820112,0.14241642,98299.0,98298.0,0.2054326]
[1739262821925,0.07573642,98299.0,98298.0,0.2054326]
[1739262823419,0.07573642,98299.0,98298.0,0.21777194]
[1739262824228,0.07573642,98299.0,98298.0,0.43987194]
[1739262824417,0.00015264,98307.0,98306.0,0.2034161]
[1739262824613,0.00015264,98307.0,98306.0,0.5642161]
[1739262825623,0.00015264,98307.0,98306.0,0.5652161]
[1739262826628,0.00015264,98307.0,98306.0,0.5662161]
[1739262829320,0.00015264,98307.0,98306.0,0.5652161]
[1739262830532,0.06668,98320.0,98319.0,0.2033892]
[1739262831623,0.06668,98320.0,98319.0,0.2053892]
[1739262836723,0.01249402,98321.0,98319.0,0.2053892]
[1739262836928,0.06668,98326.0,98319.0,0.002]
[1739262837233,0.30325379,98328.0,98327.0,0.2033727]
[1739262837829,0.31576074,98328.0,98327.0,0.2033727]
[1739262838834,0.31576074,98328.0,98327.0,0.2043727]
[1739262839437,0.31576074,98328.0,98327.0,0.2053727]
[1739262841022,0.30325379,98328.0,98327.0,0.2053727]
[1739262842340,0.3779645,98328.0,98327.0,0.2053727]
[1739262846139,0.00015264,98329.0,98328.0,0.2033706]
[1739262847637,0.00015264,98329.0,98328.0,0.2043706]
[1739262848235,0.00015264,98329.0,98328.0,0.2053706]
[1739262849941,0.00015264,98329.0,98328.0,0.5661706]
[1739262853343,0.33357917,98335.0,98328.0,0.3628]
[1739262853651,0.33357917,98335.0,98334.0,0.2033582]
[1739262854847,0.33357917,98335.0,98334.0,0.2103582]
[1739262856255,0.33357917,98335.0,98334.0,0.2253582]
[1739262858449,0.57639044,98335.0,98334.0,0.2253582]
[1739262859242,0.57639044,98335.0,98334.0,0.2373877]
[1739262860147,0.31751526,98341.0,98334.0,0.0340295]
[1739262860345,0.31751526,98341.0,98340.0,0.5641458]
[1739262862352,0.31751526,98341.0,98340.0,0.5651458]
[1739262863148,0.31751526,98341.0,98340.0,0.5661458]
[1739262863544,0.68408,98342.0,98340.0,0.5661458]
[1739262870557,0.00010029,98344.0,98343.0,0.2033396]
[1739262872157,0.00010029,98344.0,98343.0,0.2043396]
[1739262873455,0.00010029,98344.0,98343.0,0.2053396]
[1739262873963,0.07479679,98344.0,98343.0,0.2053396]
[1739262876158,9e-08,98344.0,98343.0,0.2053396]
[1739262876463,9e-08,98344.0,98343.0,0.5661396]
[1739262876662,9e-08,98344.0,98343.0,0.5651396]
[1739262876861,9e-08,98344.0,98343.0,0.5661396]
[1739262877061,0.30325379,98356.0,98355.0,0.2033148]
[1739262878459,0.30325379,98356.0,98355.0,0.2043148]
[1739262879955,0.30325379,98356.0,98355.0,0.2053148]
[1739262880658,0.01212498,98361.0,98358.0,0.2033086]
[1739262880864,0.2033062,98360.0,98358.0,0.2033086]
[1739262881455,0.01212498,98361.0,98358.0,0.2033086]
[1739262882066,0.01212498,98361.0,98358.0,0.2043086]
[1739262883158,0.01212498,98361.0,98358.0,0.2053086]
[1739262884056,0.10575003,98361.0,98358.0,0.2053086]
[1739262886165,0.10575003,98361.0,98358.0,0.002]
[1739262887668,0.10669419,98359.0,98358.0,0.002]
[1739262888769,0.10669419,98359.0,98348.0,0.2033275]
[1739262888972,0.05486899,98358.0,98348.0,0.2033275]
[1739262890167,0.12956318,98358.0,98348.0,0.2053275]
[1739262890767,0.12956318,98358.0,98348.0,0.2043275]
[1739262891069,0.33287268,98358.0,98348.0,0.2053275]
[1739262893671,0.07469419,98357.0,98348.0,0.2053275]
[1739262893869,0.06688,98356.0,98348.0,0.2053275]
[1739262894069,0.06688,98356.0,98349.0,0.2033269]
[1739262896566,0.06688,98356.0,98349.0,0.2043269]
[1739262896567,0.07469419,98355.0,98349.0,0.2043269]
[1739262896967,0.07469419,98355.0,98349.0,0.2053269]
[1739262897365,0.3608,98350.0,98349.0,0.002]
[1739262897977,0.3608,98350.0,98338.0,0.2033496]
[1739262898274,0.3608,98341.0,98338.0,0.2033496]
[1739262898576,0.0668,98340.0,98338.0,0.2033496]
[1739262899162,0.0668,98340.0,98331.0,0.00015256]
[1739262899471,0.0668,98340.0,98334.0,0.2033566]
[1739262899863,0.07837453,98340.0,98334.0,0.2033566]
[1739262900365,0.08037453,98340.0,98334.0,0.2033566]
[1739262900969,0.2033484,98339.0,98331.0,0.00015256]
[1739262902773,0.08037453,98340.0,98331.0,0.00015256]
[1739262902976,0.2033619,98333.0,98331.0,0.00015256]
[1739262903175,0.0301,98332.0,98331.0,0.00015256]
[1739262904470,0.0321,98332.0,98331.0,0.00015256]
[1739262905471,0.0321,98332.0,98319.0,0.3608]